bitfinex/quotes_SOLUSD_20240708
["timestamp","ask_amount","ask_price","bid_price","bid_amount"]
[1720429086627,2.3662,140.38,140.23,16.2584]
[1720429088328,0.17,140.37,140.23,16.2584]
[1720429088724,2.3662,140.44,140.23,16.2584]
[1720429088949,2.3662,140.44,140.25,42.51]
[1720429089123,2.3662,140.44,140.26,20.0]
[1720429090937,2.3662,140.44,140.27,0.17]
[1720429091634,44.8762,140.49,140.28,6.3992]
[1720429091846,2.3662,140.49,140.3,15.4179]
[1720429092050,2.3662,140.49,140.31,20.17]
[1720429092353,2.3662,140.49,140.31,20.0]
[1720429092769,2.3662,140.49,140.33,42.51]
[1720429092948,2.3662,140.49,140.34,20.0]
[1720429093826,2.3662,140.49,140.33,42.51]
[1720429094057,115.0,140.54,140.33,42.51]
[1720429094058,2.3662,140.52,140.33,42.51]
[1720429094233,2.3662,140.52,140.34,20.0]
[1720429094435,2.3662,140.52,140.34,20.17]
[1720429096038,2.3662,140.52,140.37,42.51]
[1720429096233,2.3662,140.52,140.38,20.0]
[1720429097326,0.17,140.51,140.38,20.0]
[1720429097958,2.3662,140.52,140.38,20.0]
[1720429098157,2.3662,140.58,140.38,16.5627]
[1720429098334,2.3662,140.58,140.39,20.0]
[1720429100052,2.3662,140.58,140.41,42.51]
[1720429100233,2.3662,140.58,140.42,20.0]
[1720429100435,100.0,140.56,140.41,1.42191619]
[1720429100654,2.3662,140.54,140.35,6.42]
[1720429100870,142.51,140.52,140.33,16.2811]
[1720429101155,100.0,140.5,140.33,16.2811]
[1720429101384,0.17,140.49,140.33,16.2811]
[1720429101530,20.17,140.49,140.33,16.2811]
[1720429101931,0.17,140.49,140.33,16.2811]
[1720429102542,0.17,140.5,140.33,16.2811]
[1720429102741,0.17,140.5,140.34,20.17]
[1720429103169,2.3662,140.54,140.34,20.17]
[1720429103371,2.3662,140.54,140.37,42.51]
[1720429103670,2.3662,140.54,140.38,0.17]
[1720429103857,2.3662,140.54,140.38,20.17]
[1720429104557,2.3662,140.54,140.39,6.1305]
[1720429104762,4.45590009,140.61,140.39,6.1305]
[1720429104763,2.3662,140.61,140.42,16.1192]
[1720429105067,2.3662,140.61,140.45,42.51]
[1720429105379,2.3662,140.61,140.43,0.17]
[1720429105574,2.3662,140.61,140.43,20.17]
[1720429105750,0.8567655,140.66,140.43,20.17]
[1720429105945,0.8567655,140.66,140.48,42.51]
[1720429106479,0.8567655,140.66,140.5,42.51]
[1720429107064,0.8567655,140.66,140.47,0.17]
[1720429107273,0.8567655,140.66,140.46,42.51]
[1720429107467,0.8567655,140.66,140.44,6.1432]
[1720429107680,115.0,140.65,140.44,6.1432]
[1720429107987,2.3662,140.64,140.44,6.1432]
[1720429108189,42.51,140.62,140.42,16.1192]
[1720429108476,45.17,140.61,140.39,48.9195]
[1720429108681,20.0,140.6,140.39,48.9195]
[1720429108896,0.17,140.59,140.4,1.42261757]
[1720429109183,0.17,140.59,140.39,48.9195]
[1720429109553,0.17,140.6,140.39,59.22588162]
[1720429109855,2.3662,140.64,140.42,42.51]
[1720429110178,2.3662,140.64,140.49,42.51]
[1720429111589,2.3662,140.64,140.47,16.0594]
[1720429113164,2.3662,140.64,140.48,20.17]
[1720429113850,4.60336758,140.76,140.54,42.51]
[1720429114208,42.51,140.75,140.49,48.9477]
[1720429114354,42.51,140.75,140.5,20.17]
[1720429114658,157.51,140.75,140.5,20.17]
[1720429114859,157.51,140.75,140.51,42.51]
[1720429115053,157.51,140.75,140.52,20.17]
[1720429115280,20.0,140.74,140.52,20.17]
[1720429115469,100.0,140.72,140.52,20.0]
[1720429115660,20.0,140.71,140.52,20.0]
[1720429116379,2.5362,140.65,140.51,42.51]
[1720429116582,2.3662,140.65,140.51,42.51]
[1720429117085,2.3662,140.65,140.52,0.17]
[1720429117567,2.3662,140.65,140.52,20.17]
[1720429118859,2.3662,140.65,140.49,4.55549006]
[1720429119058,2.3662,140.65,140.48,10.30638162]
[1720429119462,2.3662,140.71,140.51,42.51]
[1720429119678,0.3567655,140.66,140.51,42.51]
[1720429120386,0.3567655,140.66,140.52,20.17]
[1720429120763,0.3567655,140.66,140.55,42.51]
[1720429122190,0.3567655,140.66,140.55,16.56108162]
[1720429122375,0.3567655,140.66,140.5,6.2547]
[1720429122691,0.3567655,140.66,140.51,10.30638162]
[1720429122890,0.3567655,140.66,140.55,42.51]
[1720429123187,0.3567655,140.66,140.51,10.30638162]
[1720429123188,0.3567655,140.66,140.54,42.51]
[1720429123374,0.3567655,140.66,140.54,52.81638162]
[1720429123868,0.3567655,140.66,140.58,42.51]
[1720429125804,0.3567655,140.66,140.55,25.71928162]
[1720429126996,0.3567655,140.66,140.58,42.51]
[1720429127283,0.3567655,140.66,140.59,0.17]
[1720429127602,0.3567655,140.66,140.62,42.51]
[1720429127786,0.3567655,140.66,140.63,0.17]
[1720429128102,0.3567655,140.66,140.63,20.17]
[1720429128306,2.23716758,140.76,140.64,37.2454]
[1720429128609,2.23716758,140.76,140.68,42.51]
[1720429128787,2.23716758,140.76,140.69,20.0]
[1720429129297,2.23716758,140.76,140.7,0.17]
[1720429129489,2.23716758,140.76,140.68,42.51]
[1720429129696,2.23716758,140.76,140.64,26.10178162]
[1720429129882,2.23716758,140.76,140.66,42.51]
[1720429130208,2.23716758,140.76,140.66,52.81638162]
[1720429130391,2.23716758,140.76,140.67,30.30638162]
[1720429130904,0.8567655,140.8,140.7,42.51]
[1720429131109,0.8567655,140.8,140.71,31.26006495]
[1720429131300,0.04222485,140.89,140.74,42.51]
[1720429131483,0.04222485,140.89,140.75,20.17]
[1720429131986,0.90842485,140.93,140.75,31.26006495]
[1720429132491,0.90842485,140.93,140.78,42.51]
[1720429132688,0.90842485,140.93,140.79,20.17]
[1720429133102,0.90842485,140.93,140.79,20.0]
[1720429133299,0.90842485,140.93,140.78,42.68]
[1720429133604,0.90842485,140.93,140.79,0.17]
[1720429133815,0.90842485,140.93,140.79,20.17]
[1720429134390,4.65843944,140.99,140.8,6.4509]
[1720429134707,4.65843944,140.99,140.81,20.0]
[1720429134913,0.9084,140.96,140.81,20.0]
[1720429135505,0.2651655,140.96,140.79,11.09006495]
[1720429136006,15.0,141.03,140.79,11.09006495]
[1720429136214,101.65303792,141.02,140.79,11.09006495]
[1720429136397,1.65303792,141.02,140.79,11.09006495]
[1720429136601,101.65303792,141.02,140.79,11.09006495]
[1720429136787,15.0,141.01,140.79,11.09006495]
[1720429136988,115.0,141.01,140.79,11.09006495]
[1720429137188,20.17,141.0,140.79,11.09006495]
[1720429137411,120.17,141.0,140.79,11.09006495]
[1720429137617,60.0,140.99,140.79,11.09006495]
[1720429137829,100.0,140.96,140.79,11.09006495]
[1720429138111,80.17,140.95,140.75,23.0987]
[1720429138291,0.2652,140.94,140.75,23.0987]
[1720429138493,0.17,140.93,140.75,23.0987]
[1720429139021,0.2652,140.94,140.76,52.51673162]
[1720429139510,0.2652,141.02,140.8,42.51]
[1720429139712,0.2652,141.02,140.8,52.51673162]
[1720429140013,0.2652,141.02,140.81,0.17]
[1720429140215,0.2652,141.02,140.81,20.17]
[1720429140422,0.2652,141.02,140.87,42.51]
[1720429140625,0.2652,141.02,140.83,42.51]
[1720429140815,0.2652,141.02,140.84,0.17]
[1720429140996,0.2652,141.02,140.83,42.51]
[1720429141402,41.2752,141.04,140.83,42.51]
[1720429142318,20.0,141.03,140.83,42.51]
[1720429142721,20.0,141.03,140.84,0.17]
[1720429143098,20.0,141.03,140.83,42.51]
[1720429143431,41.2752,141.04,140.84,20.17]
[1720429144130,41.2752,141.04,140.84,20.0]
[1720429144303,41.2752,141.04,140.85,0.17]
[1720429144498,41.2752,141.04,140.84,20.0]
[1720429144704,41.2752,141.04,140.83,52.51673162]
[1720429144927,56.2752,141.04,140.83,52.51673162]
[1720429145099,100.0,141.0,140.83,10.00673162]
[1720429145299,0.17,140.99,140.82,21.8213]
[1720429145528,65.17,140.99,140.82,21.8213]
[1720429145828,165.17,140.99,140.82,21.8213]
[1720429146006,100.0,140.94,140.82,21.8213]
[1720429146211,0.17,140.93,140.77,31.66343162]
[1720429146522,80.17,140.93,140.77,21.6567]
[1720429146743,100.0,140.89,140.72,31.78003162]
[1720429147026,80.17,140.93,140.72,21.7733]
[1720429147027,0.17,140.93,140.72,21.7733]
[1720429147196,0.17,140.93,140.73,10.00673162]
[1720429147722,0.17,140.94,140.73,10.00673162]
[1720429148301,20.0,140.95,140.75,42.51]
[1720429148555,20.0,140.97,140.76,6.1245]
[1720429148831,45.0,140.96,140.76,6.1245]
[1720429149118,20.0,140.95,140.76,6.1245]
[1720429149710,24.6358713,140.98,140.77,16.3342]
[1720429149907,20.0,140.98,140.77,16.3342]
[1720429150115,100.0,140.97,140.77,16.3342]
[1720429150325,20.0,140.96,140.77,16.3342]
[1720429150831,162.10669987,140.99,140.77,26.34093162]
[1720429151004,47.10669987,140.99,140.77,26.34093162]
[1720429151198,47.10669987,140.99,140.78,30.17673162]
[1720429151400,100.0,141.01,140.79,48.8498]
[1720429151613,100.0,141.01,140.81,15.1466]
[1720429151818,104.56416838,141.01,140.81,25.15333162]
[1720429152127,4.56416838,141.01,140.83,6.3398]
[1720429152303,115.0,141.03,140.83,6.3398]
[1720429152623,100.0,141.03,140.83,6.3398]
[1720429152929,115.0,141.03,140.83,6.3398]
[1720429153308,15.0,141.03,140.83,6.3398]
[1720429153627,57.51,141.05,140.83,6.3398]
[1720429153815,100.0,141.02,140.83,6.3398]
[1720429154014,45.0,141.01,140.83,6.3398]
[1720429154210,20.17,141.0,140.83,6.3398]
[1720429154423,20.0,141.0,140.83,6.3398]
[1720429154731,20.0,141.01,140.83,6.3398]
[1720429155100,120.0,141.01,140.83,6.3398]
[1720429155517,100.0,140.99,140.83,6.3398]
[1720429155722,20.0,140.98,140.83,6.3398]
[1720429156331,0.17,140.97,140.83,6.3398]
[1720429156535,100.0,141.03,140.83,6.3398]
[1720429156536,0.17,140.98,140.83,6.3398]
[1720429156719,65.17,141.02,140.83,6.3398]
[1720429156906,42.51,141.0,140.83,6.3398]
[1720429157114,20.17,140.99,140.83,6.3398]
[1720429158439,20.0,140.99,140.83,6.3398]
[1720429158606,100.0,141.02,140.83,6.3398]
[1720429159419,135.31685187,141.03,140.83,6.3398]
[1720429159618,100.0,141.0,140.83,6.3398]
[1720429159823,20.0,140.99,140.83,6.3398]
[1720429160347,100.0,141.03,140.85,15.0477]
[1720429161418,34.35,141.04,140.85,15.0477]
[1720429161641,100.0,141.0,140.85,15.0477]
[1720429161838,45.0,140.99,140.85,15.0477]
[1720429162037,20.0,141.03,140.85,15.0477]
[1720429162336,0.17,141.02,140.85,15.0477]
[1720429163420,120.0,141.03,140.85,15.0477]
[1720429163622,100.0,141.03,140.86,6.22]
[1720429164627,45.0,141.02,140.86,6.22]
[1720429164840,0.17,141.01,140.86,6.22]
[1720429165023,20.17,141.01,140.86,6.22]
[1720429165342,20.0,141.01,140.86,6.22]
[1720429165536,20.0,141.02,140.86,6.22]
[1720429166033,120.0,141.04,140.86,6.22]
[1720429166427,118.5,141.04,140.86,6.22]
[1720429166632,100.0,141.03,140.86,6.22]
[1720429166831,45.17,141.02,140.86,6.22]
[1720429167037,0.17,141.02,140.86,6.22]
[1720429167420,100.0,141.03,140.86,6.22]
[1720429167618,45.17,141.02,140.86,6.22]
[1720429168019,138.97599534,141.05,140.86,6.22]
[1720429168438,138.47599534,141.05,140.86,6.22]
[1720429168625,104.12599534,141.05,140.86,6.22]
[1720429168822,104.12599534,141.05,140.88,6.0635]
[1720429169025,100.0,141.04,140.88,6.0635]
[1720429169343,20.0,141.03,140.88,6.0635]
[1720429169940,134.35,141.02,140.88,6.0635]
[1720429170242,100.0,141.0,140.88,6.0635]
[1720429170546,65.17,140.99,140.88,6.0635]
[1720429171927,20.17,140.99,140.88,6.0635]
[1720429172534,119.67,140.99,140.88,6.0635]
[1720429173031,34.35,140.98,140.88,6.0635]
[1720429173344,100.17,140.97,140.88,6.0635]
[1720429173668,45.0,140.96,140.88,6.0635]
[1720429173940,0.17,140.95,140.88,6.0635]
[1720429174328,0.17,140.96,140.88,6.0635]
[1720429174761,20.17,140.97,140.88,6.0635]
[1720429175245,34.35,141.02,140.88,6.0635]
[1720429175550,1.94753226,141.01,140.88,6.0635]
[1720429175725,1.94797161,141.0,140.88,6.0635]
[1720429175923,1.94826774,140.99,140.88,6.0635]
[1720429176129,1.9484478,140.98,140.88,6.0635]
[1720429176340,34.35,141.03,140.88,6.0635]
[1720429176660,1.94741255,141.02,140.88,6.0635]
[1720429176952,1.94741255,141.01,140.88,6.0635]
[1720429177327,1.94782778,141.0,140.88,6.0635]
[1720429177527,1.94782778,140.99,140.88,6.0635]
[1720429177825,1.94782778,140.98,140.88,6.0635]
[1720429178240,0.17,140.97,140.88,6.0635]
[1720429178835,34.35,141.0,140.88,6.0635]
[1720429179147,4.8720631,141.03,140.9,6.2221]
[1720429179356,1.94709253,141.02,140.9,6.2221]
[1720429179537,1.94709253,141.01,140.9,6.2221]
[1720429179732,134.35,141.05,140.9,6.2221]
[1720429179934,1.94699161,141.04,140.9,6.2221]
[1720429180241,1.94699161,141.03,140.9,6.2221]
[1720429180430,1.94699161,141.04,140.9,6.2221]
[1720429181149,21.94699161,141.04,140.9,6.2221]
[1720429181466,100.0,141.02,140.9,6.2221]
[1720429181642,22.11699161,141.01,140.9,6.2221]
[1720429181957,2.11699161,141.0,140.9,6.2221]
[1720429182153,0.17,141.0,140.9,6.2221]
[1720429184466,1.94718952,140.99,140.9,6.2221]
[1720429184639,0.17,140.98,140.9,6.2221]
[1720429184840,0.17,141.0,140.9,6.2221]
[1720429185136,1.94727123,140.99,140.9,6.2221]
[1720429185344,0.17,140.98,140.9,6.2221]
[1720429185642,0.17,140.98,140.9,6.80132277]
[1720429186235,20.0,141.02,140.9,6.80141031]
[1720429186448,1.94695589,141.01,140.9,6.2221]
[1720429186775,2.11686254,141.0,140.9,6.2221]
[1720429187063,1.94686254,140.99,140.9,6.2221]
[1720429187246,0.17,140.98,140.9,6.2221]
[1720429190968,4.81217238,141.0,140.9,6.2221]
[1720429191266,1.94709355,140.99,140.9,6.2221]
[1720429191453,24.86350728,141.02,140.9,6.2221]
[1720429191641,1.94703932,141.01,140.9,6.2221]
[1720429191841,1.94703932,141.0,140.9,6.2221]
[1720429192041,2.11682527,140.99,140.9,6.2221]
[1720429192244,0.17,140.99,140.9,6.2221]
[1720429192852,20.0,141.01,140.9,6.2221]
[1720429192853,0.17,141.0,140.9,6.2221]
[1720429193040,1.94709587,140.99,140.9,6.2221]
[1720429193242,0.17,140.98,140.9,6.2221]
[1720429195042,0.17,140.99,140.9,6.2221]
[1720429195244,1.94709654,140.98,140.9,6.2221]
[1720429195553,0.17,140.99,140.9,6.2221]
[1720429195867,1.94687309,140.98,140.9,6.2221]
[1720429196063,0.17,140.99,140.9,6.2221]
[1720429196363,1.9469802,140.98,140.9,6.2221]
[1720429196541,1.9469802,140.97,140.9,6.2221]
[1720429196742,21.9469802,141.01,140.9,6.2221]
[1720429196963,2.11711289,141.0,140.9,6.2221]
[1720429197151,1.94711289,140.99,140.9,6.2221]
[1720429197364,1.94670529,140.98,140.9,6.2221]
[1720429197564,1.94670529,140.97,140.9,6.2221]
[1720429197755,21.94670529,141.01,140.9,6.2221]
[1720429197950,1.94670529,141.0,140.9,6.2221]
[1720429198350,0.17,140.99,140.9,7.56635576]
[1720429198553,1.94670529,140.98,140.9,6.2221]
[1720429198761,0.17,140.97,140.9,6.2221]
[1720429199074,1.94670529,140.96,140.9,6.2221]
[1720429199369,34.35,141.02,140.9,6.2221]
[1720429199370,2.11876512,140.95,140.9,6.2221]
[1720429199588,1.94876512,140.94,140.9,6.2221]
[1720429199876,0.17,140.95,140.9,6.2221]
[1720429200167,34.35,141.01,140.9,6.2221]
[1720429200369,122.11820834,141.0,140.9,6.2221]
[1720429200540,46.94820834,140.99,140.9,6.2221]
[1720429200744,22.11820834,140.98,140.9,6.2221]
[1720429200957,1.94820834,140.97,140.9,6.2221]
[1720429201161,1.94820834,140.96,140.9,6.2221]
[1720429201348,20.0,141.0,140.9,6.2221]
[1720429201554,1.94755207,140.99,140.91,15.1111]
[1720429201745,1.94755207,140.98,140.91,15.1111]
[1720429201958,134.35,141.05,140.91,15.1111]
[1720429202162,1.94678231,141.04,140.91,15.1111]
[1720429202371,1.94678231,141.03,140.91,15.1111]
[1720429202677,30.54,140.99,140.91,15.1111]
[1720429202860,13.8734,140.99,140.92,6.359]
[1720429203043,0.8567655,141.08,140.94,6.359]
[1720429203247,30.54,141.05,140.94,6.359]
[1720429203477,30.54,141.05,140.95,15.9736]
[1720429203647,30.54,141.05,140.96,6.5154]
[1720429204294,30.54,141.05,140.97,15.041]
[1720429204585,31.3967655,141.08,140.98,6.6401]
[1720429204875,30.54,141.06,140.98,6.6401]
[1720429205448,30.54,141.03,140.98,6.6401]
[1720429205653,20.0,141.02,140.98,6.6401]
[1720429205970,30.54,141.0,140.93,6.128]
[1720429206184,30.54,140.95,140.93,6.128]
[1720429206474,0.17,140.94,140.93,2.38062022]
[1720429207056,0.17,140.94,140.92,15.6569]
[1720429207374,20.0,140.98,140.92,15.6569]
[1720429207583,20.0,140.99,140.92,15.6569]
[1720429207951,4.75947675,141.01,140.92,15.6569]
[1720429208152,20.0,141.02,140.92,15.6569]
[1720429208373,20.0,141.03,140.92,15.6569]
[1720429209045,45.0,141.02,140.92,15.6569]
[1720429209252,100.0,140.99,140.92,15.6569]
[1720429209452,100.0,140.97,140.9,6.0933]
[1720429209754,65.17,140.96,140.9,6.0933]
[1720429209950,20.17,140.96,140.9,6.0933]
[1720429210375,0.17,140.96,140.9,6.0933]
[1720429210552,20.0,141.0,140.9,6.0933]
[1720429211454,120.0,141.0,140.9,6.0933]
[1720429211674,45.0,140.99,140.9,6.0933]
[1720429211878,19.67,140.98,140.9,6.0933]
[1720429212482,0.17,140.98,140.9,6.0933]
[1720429213056,1.92182007,140.97,140.9,6.0933]
[1720429213354,0.17,140.96,140.9,6.0933]
[1720429214491,34.37,141.01,140.9,6.0933]
[1720429214776,1.92159707,141.0,140.92,6.3173]
[1720429214958,34.37,141.05,140.92,6.3173]
[1720429215155,1.9211596,141.04,140.92,6.3173]
[1720429215376,100.0,141.02,140.92,6.3173]
[1720429215566,136.2911596,141.01,140.92,6.3173]
[1720429215769,1.9211596,141.0,140.92,6.3173]
[1720429216370,100.17,140.99,140.92,6.3173]
[1720429216570,66.92178384,140.98,140.92,6.3173]
[1720429216771,2.09178384,140.97,140.92,6.3173]
[1720429216961,0.17,140.97,140.92,6.3173]
[1720429217162,4.80979576,141.05,140.92,6.3173]
[1720429217477,36.29150919,141.04,140.92,6.3173]
[1720429217679,1.92150919,141.03,140.92,6.3173]
[1720429217993,100.0,141.01,140.92,6.3173]
[1720429218163,1.92150919,141.0,140.92,6.3173]
[1720429218792,56.29150919,141.0,140.92,6.3173]
[1720429219082,56.29150919,141.0,140.91,16.1517]
[1720429219083,100.0,140.98,140.91,16.1517]
[1720429219380,21.92150919,140.97,140.91,16.1517]
[1720429219583,54.37,141.0,140.91,16.1517]
[1720429219789,1.92191769,140.99,140.91,16.1517]
[1720429219976,54.37,141.0,140.91,16.1517]
[1720429220174,100.0,140.97,140.91,16.1517]
[1720429220379,67.0920338,140.96,140.91,16.1517]
[1720429220683,1.9220338,140.95,140.91,16.1517]
[1720429220878,2.0920338,140.94,140.91,16.1517]
[1720429221191,34.37,140.92,140.71,9.83499696]
[1720429221484,100.0,140.87,140.65,9.83499696]
[1720429221856,20.17,140.86,140.66,8.5123663]
[1720429222064,134.37,140.84,140.66,8.5123663]
[1720429222362,134.37,140.84,140.67,6.5631]
[1720429222363,100.0,140.8,140.67,6.5631]
[1720429222568,134.37,140.8,140.67,6.5631]
[1720429222789,67.09439469,140.79,140.67,6.5631]
[1720429222959,1.92439469,140.78,140.67,6.5631]
[1720429223169,0.17,140.77,140.67,6.5631]
[1720429223368,100.17,140.77,140.67,6.5631]
[1720429223589,100.0,140.75,140.5,6.5631]
[1720429223794,134.37,140.71,140.52,6.55]
[1720429223970,100.0,140.69,140.52,6.55]
[1720429224171,20.17,140.74,140.53,15.709]
[1720429224386,100.0,140.7,140.54,6.55]
[1720429224705,20.17,140.69,140.54,6.55]
[1720429224992,179.37,140.68,140.54,6.55]
[1720429225502,20.17,140.67,140.54,6.55]
[1720429226477,145.0,140.66,140.54,6.55]
[1720429226683,100.0,140.64,140.54,6.55]
[1720429226999,20.17,140.63,140.54,6.55]
[1720429227172,65.17,140.63,140.45,23.2309]
[1720429227374,100.0,140.6,140.45,23.2309]
[1720429227590,20.0,140.59,140.45,23.2309]
[1720429228196,4.8341723,140.68,140.45,58.7997]
[1720429228197,20.0,140.64,140.45,58.7997]
[1720429228374,4.8341723,140.68,140.46,6.6512]
[1720429228576,120.0,140.69,140.46,6.6512]
[1720429228796,42.22,140.7,140.48,22.0611]
[1720429228966,42.22,140.7,140.49,6.2]
[1720429229367,100.0,140.69,140.49,6.2]
[1720429229573,100.0,140.65,140.49,6.2]
[1720429229993,35.84529788,140.68,140.49,6.2]
[1720429229994,142.22,140.62,140.49,6.2]
[1720429230194,20.0,140.61,140.49,6.2]
[1720429230502,0.17,140.6,140.49,6.2]
[1720429230886,20.0,140.61,140.49,6.2]
[1720429231084,0.17,140.62,140.49,6.2]
[1720429231384,42.39,140.62,140.49,6.2]
[1720429231583,65.0,140.61,140.49,6.2]
[1720429231781,0.17,140.6,140.49,6.2]
[1720429232984,100.0,140.59,140.49,6.2]
[1720429233296,100.0,140.57,140.49,6.2]
[1720429233596,45.0,140.56,140.42,6.1647]
[1720429233806,20.0,140.55,140.42,6.1647]
[1720429233982,0.17,140.54,140.42,6.1647]
[1720429235101,20.0,140.57,140.42,6.1647]
[1720429235277,20.32,140.58,140.45,6.0642]
[1720429235478,100.0,140.63,140.45,6.0642]
[1720429235787,42.22,140.61,140.45,6.0642]
[1720429235990,100.0,140.59,140.45,6.0642]
[1720429236194,42.22,140.56,140.45,6.0642]
[1720429236499,100.0,140.55,140.45,6.0642]
[1720429236899,100.0,140.53,140.45,6.0642]
[1720429237105,107.39,140.52,140.45,6.0642]
[1720429237290,20.17,140.51,140.39,6.4621]
[1720429237491,42.22,140.48,140.39,6.4621]
[1720429237798,20.17,140.47,140.39,6.4621]
[1720429239295,20.0,140.47,140.39,6.4621]
[1720429239608,0.17,140.48,140.39,6.4621]
[1720429240186,0.17,140.47,140.39,6.4621]
[1720429240388,42.22,140.43,140.37,16.129]
[1720429240609,20.17,140.42,140.37,16.129]
[1720429240995,87.22,140.49,140.37,16.129]
[1720429240996,42.22,140.49,140.37,16.129]
[1720429241192,20.17,140.48,140.37,16.129]
[1720429242006,120.17,140.48,140.37,16.129]
[1720429242204,120.17,140.48,140.34,6.4184]
[1720429242205,100.0,140.44,140.34,6.4184]
[1720429242402,20.17,140.43,140.34,6.4184]
[1720429242614,45.0,140.42,140.34,6.4184]
[1720429242786,20.17,140.41,140.34,6.4184]
[1720429243107,0.17,140.41,140.34,6.4184]
[1720429243310,20.0,140.43,140.34,6.4184]
[1720429243613,20.0,140.45,140.34,6.4184]
[1720429243792,42.22,140.42,140.34,6.4184]
[1720429243987,20.0,140.41,140.34,6.4184]
[1720429244688,0.17,140.4,140.34,6.4184]
[1720429245785,0.17,140.4,140.31,15.1702]
[1720429245981,42.22,140.33,140.2,22.6355]
[1720429246188,20.17,140.32,140.2,22.6355]
[1720429246381,20.0,140.32,140.2,22.6355]
[1720429246582,6.4759,140.48,140.22,21.8018]
[1720429246830,42.22,140.47,140.26,6.3871]
[1720429247616,42.22,140.47,140.27,0.17]
[1720429247910,42.22,140.49,140.29,6.4927]
[1720429248089,42.22,140.49,140.31,22.2926]
[1720429248290,142.22,140.56,140.32,20.17]
[1720429248510,42.22,140.52,140.31,22.2926]
[1720429248694,142.22,140.52,140.31,22.2926]
[1720429249012,42.22,140.48,140.31,22.2926]
[1720429249325,0.17,140.47,140.31,22.2926]
[1720429249615,42.22,140.52,140.31,22.2926]
[1720429249805,151.12195026,140.56,140.32,20.17]
[1720429250013,51.12195026,140.56,140.32,0.17]
[1720429250306,100.0,140.54,140.32,0.17]
[1720429250511,42.22,140.52,140.32,0.17]
[1720429251100,45.0,140.51,140.32,0.17]
[1720429251411,145.0,140.51,140.31,22.2926]
[1720429251609,42.22,140.48,140.31,22.2926]
[1720429252199,65.0,140.47,140.31,22.2926]
[1720429252402,0.17,140.46,140.31,22.2926]
[1720429253412,45.17,140.46,140.31,22.2926]
[1720429253724,20.0,140.45,140.31,22.2926]
[1720429253915,0.17,140.44,140.31,22.2926]
[1720429254521,20.0,140.47,140.31,22.2926]
[1720429255025,20.0,140.48,140.31,22.2926]
[1720429255203,42.22,140.45,140.31,22.2926]
[1720429255527,20.0,140.44,140.31,22.2926]
[1720429255693,0.17,140.43,140.31,22.2926]
[1720429255896,177.8731528,140.49,140.31,22.2926]
[1720429255897,100.0,140.49,140.31,22.2926]
[1720429256118,42.22,140.5,140.31,22.2926]
[1720429256621,42.22,140.46,140.31,22.2926]
[1720429257203,42.22,140.42,140.31,22.2926]
[1720429257499,20.17,140.41,140.31,22.2926]
[1720429258319,20.0,140.4,140.31,22.2926]
[1720429258525,0.17,140.39,140.31,22.2926]
[1720429258694,0.17,140.41,140.31,22.2926]